Cogmind - Beta 14 @@@ ROGUE MODE // 2024.11.14 @ 00:38:12 Player: ThatGuyMcfly Result: Destroyed by Y-45 Defender with Heavy Assault Rifle Performance ------------- Evolutions (1) 500 Regions Visited (2) 400 Robots Destroyed (34) 170 Value Destroyed (785) 785 Prototype IDs (4) 80 Alien Tech Used (0) 0 Bonus (0) 0 TOTAL SCORE: 1935 Bonus ------- None Cogmind --------- Core Integrity 0/400 Matter 250/300 Energy 5/265 System Corruption 10% Temperature Warning (323) Movement Walking (400) Ox4 Location -9/Materials Parts ------- > --- POWER (1) -------- Improved Ion Engine > --- PROPULSION (2) --- Aluminum Leg Aluminum Leg (fused) > --- UTILITY (3) ------ Huge Storage Unit Core Shielding Shield Generator > --- WEAPON (3) ------- Improved EM Shotgun Improved EM Shotgun > --- INVENTORY (25) --- Ion Engine Flight Unit Improved Heat Sink Small Storage Unit Large Storage Unit Melee Analysis Suite Hardened Light Armor Plating Peak State ------------ > --- POWER ------------ Improved Ion Engine > --- PROPULSION ------- Aluminum Leg Aluminum Leg > --- UTILITY ---------- Huge Storage Unit Visual Processing Unit Sensor Array > --- WEAPON ----------- Improved EM Shotgun Particle Gun Assault Rifle > --- INVENTORY -------- Ion Engine Flight Unit Improved Flight Unit Improved Heat Sink Small Storage Unit Large Storage Unit Sensor Array Melee Analysis Suite Core Shielding Hardened Light Armor Plating Shield Generator Improved EM Shotgun Improved EM Shotgun Improved EM Shotgun [Rating: 16] Favorites ----------- Power Improved Ion Engine Engine Improved Ion Engine Power Core Light Nuclear Core Propulsion Aluminum Leg Treads Light Treads Leg Aluminum Leg Wheel Wheel Flight Unit Improved Flight Unit Utility Sensor Array Device Sensor Array Storage Huge Storage Unit Processor Visual Processing Unit Protection Core Shielding Weapon Assault Rifle Energy Gun Particle Gun Ballistic Gun Assault Rifle Build | -11 -10 -9 ------- Run | Yrd Mat Mat Slots Evolved 2 | . . 2 Power . | . . . Propulsion . | . . . Utility 1 | . . 1 Weapon 1 | . . 1 Parts Attached 42 | 7 11 24 Power 3 | 1 1 1 Engine 2 | 1 . 1 Core 1 | . 1 . Reactor . | . . . Propulsion 14 | 3 4 7 Treads 1 | 1 . . Leg 11 | 2 4 5 Wheel 1 | . . 1 Hover . | . . . Flight 1 | . . 1 Utility 14 | 1 4 9 Device 7 | . 3 4 Storage 3 | 1 1 1 Processor 1 | . . 1 Hackware . | . . . Protection 3 | . . 3 Artifact . | . . . Weapon 11 | 2 2 7 Energy Gun 8 | 1 1 6 Energy Cannon . | . . . Ballistic Gun 3 | 1 1 1 Ballistic Cannon . | . . . Launcher . | . . . Special Weapon . | . . . Impact Weapon . | . . . Slashing Weapon . | . . . Piercing Weapon . | . . . Special Melee Weapon . | . . . Unidentified Prototypes 2 | . . 2 Parts Lost 13 | . 2 11 Power 1 | . . 1 Propulsion 3 | . . 3 Utility 4 | . 1 3 Weapon 5 | . 1 4 Highest Loss Streak 4 | . 1 4 To Critical Strikes . | . . . Average Slot Usage (%) 86 | . 97 80 Engine 4 | . 1 6 Core 4 | . 12 . Leg 22 | . 28 18 Device 11 | . 12 10 Storage 12 | . 14 11 Processor 3 | . . 5 Protection 1 | . . 1 Energy Gun 14 | . 13 15 Ballistic Gun 10 | . 14 9 Peak Build Rating 16 | 6 12 16 Average Rating 11 | 4 10 12 On Entrance 5 | . 6 11 Naked Turns . | . . . Heaviest Build 97 | 13 31 97 Greatest Support 20 | 20 20 20 Greatest Overweight (x) 9 | . 1 9 Average Overweight (x) 2 | . . 4 Largest Inventory Capacity 25 | 8 15 25 Average Capacity 19 | 6 13 23 Most Carried 16 | 4 9 16 Average Carried 9 | 2 5 11 Final Capacity 25 | 8 15 25 Final Carried 9 | 3 9 7 Class Distribution -------------------- 50% | Mutant 26% | Skirmisher 18% | Scavenger-Mutant 4% | Scavenger-Skirmisher Dominant Class ---------------- Mutant | -10/Materials Skirmisher | -9/Materials Resources | -11 -10 -9 ----------- Run | Yrd Mat Mat Matter Collected 816 | 254 240 322 Remotely . | . . . Salvage Created 1204 | 30 484 690 Parts 85 | 2 33 50 Haulers Intercepted . | . . . Recyclers Shooed 3 | . 3 . Parts Field Recycled . | . . . Retrieved Matter . | . . . Parts Self-Destructed . | . . . Prevented . | . . . Kills | -11 -10 -9 ------- Run | Yrd Mat Mat Combat Hostiles Destroyed 21 | . 10 11 Guns 19 | . 10 9 AOE 2 | . . 2 Classes Destroyed 9 | 1 5 3 Worker 6 | . 3 3 Builder 2 | . . 2 Tunneler 1 | 1 . . Recycler 2 | . 1 1 Watcher 2 | . 1 1 Swarmer 3 | . 3 . Grunt 16 | . 7 9 Duelist 1 | . . 1 Sentry 1 | . . 1 Best Kill Streak 5 | 1 5 4 Combat Bots Only 3 | . 3 3 Max Kills in Single Turn 2 | 1 2 2 Gunslinging 1 | . 1 . Exploded 1 | . . 1 Melee . | . . . Uniques/NPCs Destroyed . | . . . Combat | -11 -10 -9 -------- Run | Yrd Mat Mat Hostile Shots Fired 178 | . 56 122 Missed 45 | . 14 31 Damage Taken 2122 | . 490 1632 Core 507 | . 97 410 Absorbed by Shields 53 | . . 53 Redirected to Shielding 6 | . . 6 Core Remaining (%) 80 | 100 61 . Volleys Fired 117 | 1 45 71 Largest 3 | 1 2 3 Hottest 130 | 20 85 130 Shots Fired 183 | 1 86 96 Gun 183 | 1 86 96 Cannon . | . . . Launcher . | . . . Special . | . . . Kinetic 86 | 1 45 40 Thermal 56 | . 41 15 Explosive . | . . . Electromagnetic 41 | . . 41 Robot Hit Streak 17 | 1 10 17 Robot Miss Streak 5 | . 4 5 Penetration Max . | . . . Secondary Targets 3 | . 2 1 Max Gunslinging Chain 1 | . 1 1 Shots Hit Robots 124 | 1 52 71 Core Hits 56 | 1 24 31 Critical Kills . | . . . Critical Parts Destroyed . | . . . Critical Strikes 3 | . . 3 Burn 3 | . . 3 Melee Attacks . | . . . Impact . | . . . Slashing . | . . . Piercing . | . . . Sneak Attacks . | . . . Combat Hostiles . | . . . Follow-up Attacks . | . . . Damage Inflicted 1930 | 15 633 1282 Guns 1707 | 15 633 1059 Cannons . | . . . Explosions 223 | . . 223 Melee . | . . . Ramming . | . . . Kinetic 741 | 15 337 389 Thermal 724 | . 296 428 Explosive . | . . . Electromagnetic 465 | . . 465 Impact . | . . . Slashing . | . . . Piercing . | . . . Highest Corruption 10 | . 1 10 Average Corruption 5 | . 1 10 Corruption Purged . | . . . Corruption Blocked . | . . . Effects 34 | . 7 27 Message Errors 9 | . 2 7 Matter Fused 5 | . 1 4 Heat Flow Errors 4 | . . 4 Energy Discharges 5 | . 1 4 Parts Fused 1 | . . 1 Data Loss (minor) 5 | . 1 4 Data Loss (major) 2 | . 1 1 Misfires 1 | . . 1 Alerts 2 | . 1 1 Overload Shots . | . . . Overflow Damage . | . . . Projectiles . | . . . Explosions . | . . . Melee . | . . . Knockbacks . | . . . Impact . | . . . Kinetic . | . . . Secondary . | . . . Self-Inflicted Damage 51 | . . 51 Shots 2 | . . 2 Rammed . | . . . Targets Rammed 2 | . 1 1 Kicked 2 | . 1 1 Crushed . | . . . Highest Temperature 371 | . 144 371 Average Temperature 88 | . 47 107 Received Heat Transfer 729 | . 231 498 Effects 3 | . . 3 Shutdowns 1 | . . 1 Interference 2 | . . 2 Siege Activations . | . . . Robots Corrupted . | . . . Combat Hostiles . | . . . Parts Fried 1 | . . 1 Impact Corruptions . | . . . Robots Melted . | . . . Combat Hostiles . | . . . Parts Melted 1 | . . 1 Heat Transferred 1750 | . 710 1040 Parts Sabotaged . | . . . Parts Stolen . | . . . Parts Stripped . | . . . Power Chain Reactions 4 | . . 4 Alert | -11 -10 -9 ------- Run | Yrd Mat Mat Peak Influence 253 | 5 253 126 Initial 3 | . 3 . Average 55 | 2 99 34 Maximum Alert Level 1 | . 1 . Low Security (%) 94 | 100 84 100 Level 1 5 | . 15 . Level 2 . | . . . Level 3 . | . . . Level 4 . | . . . Level 5 . | . . . High Security . | . . . Max Security . | . . . Squads Dispatched 3 | . 1 2 Investigation 2 | . 1 1 Extermination . | . . . Reinforcement 1 | . . 1 Assault . | . . . Garrison . | . . . Intercept . | . . . Searches Triggered . | . . . Construction Impeded . | . . . Haulers Reinforced . | . . . Active Scanning Responses . | . . . Cargo Convoy Interrupts . | . . . Stealth | -11 -10 -9 --------- Run | Yrd Mat Mat Distress Signals 1 | . . 1 Communications Jammed . | . . . Distress Signals . | . . . Times Spotted 32 | . 16 16 Peak Tracking Total 7 | . 7 4 Tactical Retreats 3 | . 3 . Traps | -11 -10 -9 ------- Run | Yrd Mat Mat Traps Triggered 2 | . 1 1 Indirectly . | . . . Trap Hack Attempts . | . . . Triggered . | . . . Disarmed . | . . . Reprogrammed . | . . . Reused . | . . . Traps Extracted . | . . . Installed . | . . . Triggered . | . . . Machines | -11 -10 -9 ---------- Run | Yrd Mat Mat Machines Disabled . | . . . Max in Single Turn . | . . . Machines Repaired . | . . . Machines Dismantled . | . . . Machines Sabotaged . | . . . Overloaded Fab Kills . | . . . Hacking | -11 -10 -9 --------- Run | Yrd Mat Mat Machines Accessed 6 | . 5 1 Terminals 5 | . 4 1 Fabricators . | . . . Repair Stations . | . . . Recycling Units 1 | . 1 . Scanalyzers . | . . . Garrison Access . | . . . Total Hacks 18 | . 15 3 Successful 9 | . 7 2 Failed 9 | . 8 1 Catastrophic 1 | . 1 . Database Lockouts . | . . . Manual . | . . . Terminals 16 | . 13 3 Fabricators . | . . . Repair Stations . | . . . Recycling Units 2 | . 2 . Scanalyzers . | . . . Garrison Access . | . . . Terminal Hacks 9 | . 7 2 Record 4 | . 4 . Prototype ID Bank 1 | . 1 . Emergency Access Points 1 | . 1 . Alert Level 2 | . . 2 Locate Traps 1 | . 1 . Fabricator Hacks . | . . . Repair Station Hacks . | . . . Recycling Unit Hacks . | . . . Scanalyzer . | . . . Garrison Access Hacks . | . . . Unauthorized Hacks . | . . . Terminals . | . . . Fabricators . | . . . Repair Stations . | . . . Recycling Units . | . . . Scanalyzers . | . . . Garrison Access . | . . . Data Cores Recovered . | . . . Used . | . . . Hacking Detections 6 | . 5 1 Full Trace Events 1 | . 1 . Feedback Events . | . . . Feedback Blocked . | . . . Robot Schematics Acquired . | . . . Robots Built . | . . . Authchips . | . . . Time . | . . . Total Robot Build Rating . | . . . Part Schematics Acquired . | . . . Parts Built . | . . . Authchips . | . . . Time . | . . . Total Part Build Rating . | . . . Parts Repaired . | . . . Time . | . . . Parts Recycled . | . . . Recycled Matter . | . . . Retrieved Matter . | . . . Retrieved Components . | . . . Parts Scanalyzed . | . . . Part Schematics Acquired . | . . . Parts Damaged . | . . . Bothacking | -11 -10 -9 ------------ Run | Yrd Mat Mat Used RIF Installer . | . . . Robots Hacked . | . . . Non-combat . | . . . Combat . | . . . Robot Hacks Applied . | . . . Relay Couplers Released . | . . . Fabnet Peak Effective % . | . . . Robots Rewired . | . . . Allies Hacked . | . . . Hacks Repelled . | . . . Allies | -11 -10 -9 -------- Run | Yrd Mat Mat Total Allies . | . . . Largest Group . | . . . Highest-Rated Group . | . . . Highest-Rated Ally . | . . . Total Orders . | . . . Ally Attacks . | . . . Total Damage . | . . . Kills . | . . . Allies Corrupted . | . . . Allies Melted . | . . . Intel | -11 -10 -9 ------- Run | Yrd Mat Mat Robot Analysis Total . | . . . Derelict Logs Recovered . | . . . Drone Launches . | . . . Drone Recoveries . | . . . Exploration | -11 -10 -9 ------------- Run | Yrd Mat Mat Turns Passed 2497 | 72 839 1586 Spaces Moved 766 | 49 385 332 Core 3 | 3 . . Treads 1 | 1 . . Legs 761 | 45 385 331 Wheels . | . . . Hover . | . . . Flight 1 | . . 1 Fastest Speed 50 | 50 120 190 Average Speed 270 | 116 176 402 Slowest Speed 750 | 160 190 750 Overloaded Moves . | . . . Propulsion Burnouts . | . . . Robots Hopped . | . . . Cave-ins Triggered 1 | . . 1 Exploration Rate (%) 25 | 3 50 24 Regions Visited 2 Branch Regions . Pre-discovered Areas . | . . . Known Exits Taken . | . . . Unknown Exits Taken 2 | 1 1 . Scrap Searched . | . . . Spaces Dug . | . . . Terrain Destroyed 14 | . . 14 Melee . | . . . Projectile . | . . . AOE 14 | . . 14 Terrain Rammed . | . . . Walls Destroyed . | . . . Machines Disabled . | . . . Actions | -11 -10 -9 --------- Run | Yrd Mat Mat Total 1002 | 60 458 484 Wait 37 | . 2 35 Move 764 | 48 384 332 Hop . | . . . Pick Up 21 | 3 7 11 Fast Attach 15 | 6 3 6 Attach 12 | 1 . 11 Detach 3 | 1 . 2 Swap 15 | . 8 7 Drop 16 | . 8 8 Fire 117 | 1 45 71 Melee . | . . . Ram . | . . . Kick 2 | . 1 1 Crush . | . . . Escape Stasis . | . . . Rewire . | . . . Trap . | . . . Miscellaneous . | . . . Route ------- -11/Scrapyard -10/Materials -9/Materials History --------- Turn | Location | Event 9 | -11/Scrapyard | Discovered new exit (range 16) 73 | -11/Scrapyard | Entered Materials 304 | -10/Materials | Build established: Mutant 433 | -10/Materials | Discovered new exit (range 5) 912 | -10/Materials | Entered another Materials area 912 | -9/Materials | Evolved 2 slots: Utility x1, Weapon x1 1037 | -9/Materials | Core integrity fell below 50% 1060 | -9/Materials | Lost 4 parts (1p1n2w) 1693 | -9/Materials | Crushed by falling debris 1693 | -9/Materials | Core integrity fell below 20% 1693 | -9/Materials | System corruption reached 10% 1976 | -9/Materials | Build established: Skirmisher 2303 | -9/Materials | Lost 4 parts (2u2w) 2498 | -9/Materials | Destroyed by Y-45 Defender with Heavy Assault Rifle Last Messages --------------- R-06 Scavenger collects Aluminum Leg. W-16 Scout destroyed. R-06 Scavenger collects Corrupted Sml. Laser. U-05 Engineer destroyed. Triggered Alarm Trap. An alarm sounds. ALERT: Alarm triggered, dispatching investigation squad. K-01 Serf cleans the Scanalyzer. U-05 Engineer lays Concrete. K-01 Serf cleans the Scanalyzer. U-05 Engineer lays Concrete. K-01 Serf cleans the Scanalyzer. System corrupted: Component data lost. K-01 Serf cleans the Scanalyzer. K-01 Serf collects debris. System corrupted: Energy discharge (-90). System corrupted: Heat flow error (+281). G-34 Mercenary destroyed. Power failure, Imp. Ion Engine shutdown. Map ----- +----------------------------------------------------+ | #????????????????????????????????????????????????? | | #????????????????????????????????????????????????? | | #????????????????????????????????????????????????? | | #??????????#####?????????????????????????????????? | | #??????????# #?????????????????????????????????? | | #??######### #?????????????????????????????????? | | ???# / /# #?????????????????????????????????? | | ???# | + ##########????????????????????????? | | ???#! # # [ #????????????????????????? | | ???##+###### # "S #????????????????????????? | | ##### #????# # """ #????????????????????????? | | # #????# # "" #????????????????????????? | | !! # #????# # #????????????????????????? | | ! # #??### # """ #????????????????????????? | | ! # ###### + """ #????????????????????????? | | # # """ #????????????????????????? | | + % # #????????????????????????? | | # = % |##########????????????????????????? | | ######## *!# #??????????????????????????? | | #????### !%# "" #??????????????????????????? | | #####??????# %!# """ #??????????????????????????? | | ???????????# ! + S" ######## #####?????????????? | | ???????????# # / * + ??????? | | ???????????# # ###%##########?????????????? | | ???????????# ########?#=#??????????????????????? | | ???????????# #????????#@#??????????????????????? | | ???????????# #????????# #??????????????????????? | | ???????????# #??????? ?????????????????????? | | ???????????# #??????# #????????????????????? | | ???????????# #??????# #????????????????????? | | ???????????# #??????# #????????????????????? | | ???????????# #??????# #????????????????????? | | ???????????# ???????## ##????????????????????? | | ???????????# ????????# #?????????????????????? | | ???????????# ????????# #?????????????????????? | | ???????????? ????????# #?????????????????????? | | ???????????????????????# #?????????????????????? | | ???????????????????????# #?????????????????????? | | ???????????????????????# Y #?????????????????????? | | ???????????????????????? ??????????????????????? | | ???????????????????????? ??????????????????????? | | ???????????????????????? ??????????????????????? | | ?????????????????????????????????????????????????? | | ?????????????????????????????????????????????????? | | ?????????????????????????????????????????????????? | | ?????????????????????????????????????????????????? | | ?????????????????????????????????????????????????? | | ?????????????????????????????????????????????????? | | ?????????????????????????????????????????????????? | | ?????????????????????????????????????????????????? | +----------------------------------------------------+ Best States ------------- Heat Dissipation 39 Energy Generation 14 Energy Capacity 265 Matter Stores 300 Matter Capacity 300 Sight Range 18 Robot Scan Range 14 Terrain Scan Density 10 Armor Coverage 150 Core Shielding 20 Evasion (%) 55 Item Schematics ----------------- None Robot Schematics ------------------ None Fabricated ------------ Nothing Alien Tech Used ----------------- None Achievements -------------- Unlikely Earthworm Challenges ------------ None Game ------ Seed RingShadeExtrapolator Manual? 0 Play Time 00:20:04 Cumulative 3.9 hours Start 2024.11.14 @ 00:20:22 End 2024.11.14 @ 00:38:12 Sessions 1 Manual Loads 0 Difficulty Rogue Special Mode None Game No. 8 Rogue 8 Adventurer 0 Explorer 0 Win Type - Total 0 Types 0/0/0/0/0/0/0/0/0 Lore% 2 Gallery% 8 Achievement% 8 Wizard Run 0 Options --------- Layout 1 ASCII 0 Keyboard 0 Movement Numpad Keybinds 0 Fullscreen 0 Font 42/SmallcapsGlow Map View 50x35 Zoom Use 0% Tactical HUD 0 Map Filters NONE Filters NONE Steam 1 RUN: d3108697-96ba-4ea9-88b7-e650a803bd18